bitfinex-derivatives/quotes_SOLF0:USTF0_20250319
["timestamp","ask_amount","ask_price","bid_price","bid_amount"]
[1742353316193,8.0154,124.77,124.75,0.05288863]
[1742353316802,8.016,124.76,124.75,0.05288863]
[1742353317201,36.296,124.76,124.75,0.05288863]
[1742353317999,28.28,124.76,124.75,0.05288863]
[1742353318705,36.35103236,124.78,124.75,13.47491839]
[1742353319305,36.35103236,124.78,124.75,21.49141839]
[1742353319800,36.35103236,124.78,124.75,13.47491839]
[1742353320006,8.0154,124.77,124.75,13.47491839]
[1742353320204,8.0154,124.77,124.75,0.05288863]
[1742353322008,28.33603236,124.78,124.75,13.47491839]
[1742353322208,0.05603236,124.78,124.76,13.42202976]
[1742353322605,0.05603236,124.78,124.76,21.43772976]
[1742353323806,0.05603236,124.78,124.76,13.42202976]
[1742353324008,0.05603236,124.78,124.75,13.47491839]
[1742353324404,8.0153,124.77,124.75,13.47491839]
[1742353324609,13.42202976,124.77,124.75,0.05288863]
[1742353324809,41.70202976,124.77,124.75,0.05288863]
[1742353325010,8.016,124.76,124.75,0.05288863]
[1742353337929,21.43802976,124.76,124.75,0.05288863]
[1742353338317,28.28,124.77,124.75,0.05288863]
[1742353339125,28.28,124.77,124.75,8.06948863]
[1742353340332,28.28,124.77,124.76,21.43802976]
[1742353340531,0.05603236,124.78,124.76,21.43802976]
[1742353340729,0.05603236,124.78,124.76,13.42202976]
[1742353342133,0.05603236,124.78,124.76,21.43792976]
[1742353342636,8.07073236,124.78,124.76,13.42202976]
[1742353343135,0.05603236,124.78,124.76,13.42202976]
[1742353344039,8.07083236,124.78,124.76,13.42202976]
[1742353347238,8.0153,124.77,124.76,13.42202976]
[1742353347539,8.0153,124.77,124.75,13.47491839]
[1742353349242,8.016,124.76,124.75,0.05288863]
[1742353351640,0.05603236,124.78,124.75,13.47491839]
[1742353352445,8.07093236,124.78,124.75,21.49101839]
[1742353354346,8.07093236,124.78,124.75,37.34101839]
[1742353355046,8.0153,124.77,124.75,37.34101839]
[1742353355741,0.05603236,124.78,124.75,37.34101839]
[1742353355742,8.07103236,124.78,124.75,37.34101839]
[1742353359849,8.07103236,124.78,124.76,8.016]
[1742353360045,0.05603236,124.78,124.76,8.016]
[1742353363648,0.05603236,124.78,124.76,24.786]
[1742353364347,8.07073236,124.78,124.76,24.786]
[1742353365452,8.07073236,124.78,124.76,16.77]
[1742353365751,8.0153,124.77,124.76,16.77]
[1742353366048,49.71732976,124.77,124.76,16.77]
[1742353366848,36.2953,124.77,124.76,16.77]
[1742353378950,0.05603236,124.78,124.76,30.19202976]
[1742353379155,0.05603236,124.78,124.77,13.42202976]
[1742353379353,0.05603236,124.78,124.76,16.77]
[1742353379354,0.05603236,124.78,124.76,30.19202976]
[1742353379658,0.05603236,124.78,124.76,16.77]
[1742353381161,28.28,124.77,124.76,16.77]
[1742353381463,36.2953,124.77,124.76,16.77]
[1742353386967,28.28,124.77,124.76,16.77]
[1742353390772,36.2953,124.77,124.76,16.77]
[1742353400772,8.016,124.76,124.75,22.95288863]
[1742353401174,13.42202976,124.76,124.69,14.2774]
[1742353401379,13.42202976,124.74,124.69,27.69942976]
[1742353401579,28.28,124.73,124.69,27.69942976]
[1742353401781,36.2985,124.73,124.69,25.65922976]
[1742353402374,0.0512871,124.72,124.7,0.05604998]
[1742353402573,0.0512871,124.72,124.71,13.42202976]
[1742353403182,0.0512871,124.72,124.71,21.44122976]
[1742353405279,28.28,124.75,124.73,8.0179]
[1742353405482,8.0164,124.76,124.74,13.42202976]
[1742353405786,8.0164,124.76,124.74,21.43932976]
[1742353406488,8.07166502,124.76,124.74,21.4986906]
[1742353407987,8.07166502,124.76,124.74,13.4813906]
[1742353412093,8.0166,124.75,124.74,13.4813906]
[1742353417696,8.07146502,124.76,124.74,13.4813906]
[1742353417890,8.07146502,124.76,124.75,13.42202976]
[1742353418090,0.05526502,124.76,124.75,13.42202976]
[1742353421095,0.05526502,124.76,124.75,21.43862976]
[1742353421296,0.05526502,124.76,124.75,25.61652976]
[1742353422991,0.05526502,124.76,124.75,53.87652976]
[1742353425405,0.05526502,124.76,124.75,45.85992976]
[1742353426006,0.05526502,124.76,124.75,53.87652976]
[1742353432402,8.07126502,124.76,124.75,28.26]
[1742353432599,0.05526502,124.76,124.74,0.05936084]
[1742353433004,8.0166,124.75,124.74,0.05936084]
[1742353434603,8.07146502,124.76,124.74,0.05936084]
[1742353437611,0.05526502,124.76,124.74,21.4984906]
[1742353439415,0.05526502,124.76,124.75,13.42202976]
[1742353440007,0.05526502,124.76,124.75,21.43862976]
[1742353440413,0.05526502,124.76,124.75,13.42202976]
[1742353440812,8.07126502,124.76,124.75,13.42202976]
[1742353441008,8.07126502,124.76,124.74,8.07636084]
[1742353441212,0.05526502,124.76,124.74,21.4983906]
[1742353443518,8.07146502,124.76,124.74,13.4813906]
[1742353443918,0.05526502,124.76,124.75,13.42202976]
[1742353444708,0.05526502,124.76,124.74,8.07626084]
[1742353445012,0.05526502,124.76,124.75,13.42202976]
[1742353445413,0.05526502,124.76,124.75,21.43862976]
[1742353445914,23.41,124.79,124.75,13.42202976]
[1742353446218,23.41,124.79,124.78,13.42202976]
[1742353446406,23.41,124.79,124.78,21.43672976]
[1742353447613,25.2606831,124.81,124.78,41.68202976]
[1742353447918,25.2606831,124.81,124.8,13.42202976]
[1742353448219,11.1506831,124.81,124.8,21.43542976]
[1742353448422,11.1506831,124.81,124.8,13.42202976]
[1742353448817,0.05785999,124.82,124.8,13.42202976]
[1742353449011,0.05785999,124.82,124.81,13.42202976]
[1742353449416,8.06995999,124.82,124.81,13.42202976]
[1742353450020,0.05785999,124.82,124.81,13.42202976]
[1742353452926,8.06995999,124.82,124.81,13.42202976]
[1742353458728,41.73988975,124.82,124.73,1.3943425]
[1742353458933,13.42202976,124.81,124.76,13.42202976]
[1742353459232,41.68202976,124.82,124.77,13.42202976]
[1742353459430,13.42202976,124.81,124.76,13.42202976]
[1742353460033,8.0153,124.77,124.76,13.42202976]
[1742353460429,8.0163,124.76,124.75,13.47684046]
[1742353461335,8.07222831,124.77,124.75,13.47684046]
[1742353461538,8.07222831,124.77,124.76,13.42202976]
[1742353467731,8.016,124.76,124.75,13.47684046]
[1742353468736,8.016,124.76,124.75,0.0548107]
[1742353470937,8.016,124.76,124.75,13.47684046]
[1742353471539,8.07222831,124.77,124.75,13.47684046]
[1742353472839,8.07222831,124.77,124.75,0.0548107]
[1742353474142,8.016,124.76,124.75,0.0548107]
[1742353476844,8.0179,124.73,124.72,13.42202976]
[1742353477143,41.68202976,124.76,124.72,13.42202976]
[1742353477555,41.68202976,124.76,124.71,13.42202976]
[1742353477846,8.0177,124.74,124.72,13.42202976]
[1742353478046,8.0177,124.74,124.72,13.47731741]
[1742353478246,0.05447292,124.75,124.72,13.47731741]
[1742353479447,16.12447292,124.75,124.72,13.47731741]
[1742353479850,24.14147292,124.75,124.72,21.49581741]
[1742353480349,16.12447292,124.75,124.72,21.49581741]
[1742353480848,16.12447292,124.75,124.72,13.47731741]
[1742353481248,8.0179,124.73,124.72,13.47731741]
[1742353486355,8.0179,124.73,124.72,0.05528765]
[1742353487252,8.0182,124.73,124.71,13.42202976]
[1742353487552,36.2782,124.73,124.72,13.42202976]
[1742353487858,51.8698,124.75,124.72,13.42202976]
[1742353488050,51.8698,124.75,124.73,13.42202976]
[1742353488446,59.947159,124.75,124.73,13.4770441]
[1742353489759,8.0173,124.74,124.73,13.4770441]
[1742353490858,8.0173,124.74,124.73,0.05501434]
[1742353491160,21.44202976,124.74,124.67,13.42202976]
[1742353491362,51.929959,124.75,124.67,13.42202976]
[1742353491363,13.42202976,124.72,124.67,13.42202976]
[1742353491551,28.26,124.71,124.67,13.42202976]
[1742353491756,8.0209,124.69,124.67,13.42202976]
[1742353492258,8.07556736,124.69,124.68,13.42202976]
[1742353492762,0.05466736,124.69,124.68,13.42202976]
[1742353493359,8.07516736,124.69,124.68,13.42202976]
[1742353497363,8.0211,124.68,124.67,13.47269495]
[1742353504863,5.18466736,124.69,124.67,13.47269495]
[1742353505063,5.18466736,124.69,124.68,13.42202976]
[1742353505662,2.0616,124.74,124.68,41.70202976]
[1742353505865,30.3416,124.74,124.72,13.42202976]
[1742353506263,38.3592,124.74,124.72,13.42202976]
[1742353506869,43.77782611,124.74,124.72,13.48173821]
[1742353507464,15.49782611,124.74,124.72,13.48173821]
[1742353507671,30.33782611,124.74,124.72,13.48173821]
[1742353508468,28.27622611,124.74,124.72,13.48173821]
[1742353508670,28.27622611,124.74,124.73,13.42202976]
[1742353509265,20.25862611,124.74,124.73,13.42202976]
[1742353511273,20.25862611,124.74,124.73,21.43992976]
[1742353512577,20.25862611,124.74,124.72,0.05970845]
[1742353513476,8.0179,124.73,124.72,0.05970845]
[1742353515879,8.0179,124.73,124.68,38.4811]
[1742353515880,8.0198,124.71,124.68,28.26]
[1742353516072,8.0198,124.71,124.69,13.42202976]
[1742353516680,8.0198,124.71,124.7,13.42202976]
[1742353518379,8.0198,124.7,124.69,13.48208765]
[1742353522279,8.0198,124.7,124.69,0.06005789]
[1742353523383,36.2798,124.7,124.69,0.06005789]
[1742353526788,28.26,124.7,124.69,13.48208765]
[1742353527089,18.92,124.71,124.69,13.48208765]
[1742353527293,18.92,124.71,124.7,13.42202976]
[1742353527487,26.9392,124.71,124.7,13.42202976]
[1742353530793,26.9392,124.71,124.69,13.48208765]
[1742353531492,18.92,124.71,124.69,21.50218765]
[1742353532186,18.92,124.71,124.69,0.06005789]
[1742353532388,18.92,124.71,124.62,13.42202976]
[1742353532389,41.68202976,124.7,124.62,13.42202976]
[1742353532592,13.42202976,124.67,124.62,13.42202976]
[1742353532786,8.0235,124.65,124.62,13.42202976]
[1742353532986,8.0235,124.65,124.63,13.42202976]
[1742353533594,8.0237,124.64,124.63,13.47486305]
[1742353534992,8.08077244,124.65,124.63,13.47486305]
[1742353535194,8.08077244,124.65,124.64,13.42202976]
[1742353535395,0.05757244,124.65,124.64,13.42202976]
[1742353542604,8.08067244,124.65,124.64,13.42202976]
[1742353543003,0.05757244,124.65,124.64,13.42202976]
[1742353543201,0.05757244,124.65,124.63,0.05283329]
[1742353543403,0.05757244,124.65,124.63,13.47486305]
[1742353543604,0.05757244,124.65,124.64,13.42202976]
[1742353544003,0.05757244,124.65,124.64,21.44572976]
[1742353546800,17.64052976,124.73,124.67,8.0214]
[1742353547104,28.28,124.72,124.7,13.42202976]
[1742353547308,36.2983,124.73,124.7,13.42202976]
[1742353548107,36.35497678,124.73,124.7,13.47356882]
[1742353549115,36.35497678,124.73,124.7,8.07123906]
[1742353549413,36.35497678,124.73,124.7,0.05153906]
[1742353549616,8.0187,124.72,124.7,0.05153906]
[1742353550416,13.3787,124.72,124.7,0.05153906]
[1742353550620,5.36,124.72,124.7,0.05153906]
[1742353551109,5.36,124.72,124.7,8.07123906]
[1742353552017,5.36,124.72,124.7,0.05153906]
[1742353553817,13.3787,124.72,124.7,0.05153906]
[1742353554519,8.0192,124.71,124.7,0.05153906]
[1742353559622,36.2792,124.71,124.7,0.05153906]
[1742353559922,8.0207,124.69,124.66,28.8557953]
[1742353560922,8.0207,124.69,124.66,28.91069357]
[1742353560923,8.08173477,124.69,124.66,28.91069357]
[1742353561423,0.06103477,124.69,124.67,8.0218]
[1742353563021,0.06103477,124.69,124.66,20.88889357]
[1742353563722,22.27,124.72,124.68,20.8339953]
[1742353564118,22.27,124.72,124.71,8.0192]
[1742353565925,28.26,124.77,124.73,8.0177]
[1742353566121,28.26,124.77,124.73,28.8516953]
[1742353566316,4.2528,124.79,124.73,20.8339953]
[1742353566623,28.26,124.79,124.75,20.8339953]
[1742353567028,80.87633242,124.8,124.76,8.0156]
[1742353567219,0.05927743,124.78,124.76,8.0670227]
[1742353568027,0.05927743,124.78,124.76,0.0514227]
[1742353569022,8.0153,124.77,124.76,0.0514227]
[1742353569928,8.07417743,124.78,124.76,0.0514227]
[1742353570125,0.05927743,124.78,124.76,0.0514227]
[1742353571327,0.05927743,124.78,124.77,13.3185637]
[1742353573331,8.07397743,124.78,124.77,13.3185637]
[1742353573531,0.05927743,124.78,124.77,13.3185637]
[1742353575227,0.05927743,124.78,124.77,8.0153]
[1742353575422,8.0129,124.81,124.77,13.3185637]
[1742353575627,31.3395,124.83,124.8,13.3185637]
[1742353575926,8.0128,124.81,124.8,13.3185637]
[1742353576126,31.3395,124.83,124.79,13.3185637]
[1742353576426,8.0134,124.8,124.79,13.3185637]
[1742353577326,8.0141,124.79,124.78,41.63296975]
[1742353577533,8.0141,124.79,124.78,0.05440605]
[1742353581932,21.3326637,124.79,124.78,0.05440605]
[1742353582629,13.3185637,124.79,124.73,13.3185637]
[1742353582833,13.3185637,124.77,124.73,13.3185637]
[1742353583026,41.5585637,124.77,124.73,13.3185637]
[1742353583534,28.24,124.77,124.73,13.3185637]
[1742353583828,8.0171,124.75,124.74,0.05715497]
[1742353591437,0.05290045,124.76,124.74,13.37571867]
[1742353591643,8.06920045,124.76,124.74,13.37571867]
[1742353592440,8.06920045,124.76,124.75,13.3185637]
[1742353593242,0.05290045,124.76,124.75,13.3185637]
[1742353594550,0.05290045,124.76,124.74,0.05715497]
[1742353594745,13.37146415,124.76,124.74,0.05715497]
[1742353595048,36.2766,124.75,124.74,0.05715497]
[1742353596152,49.5951637,124.75,124.74,0.05715497]
[1742353596552,8.0192,124.71,124.69,13.3185637]
[1742353597748,8.07455222,124.71,124.69,13.37935348]
[1742353603163,0.05535222,124.71,124.7,13.3185637]
[1742353603957,0.05535222,124.71,124.7,21.3383637]
[1742353606469,11.44,124.74,124.72,8.0185]
[1742353606665,11.44,124.74,124.73,13.3185637]
[1742353607265,11.44,124.74,124.73,21.3364637]
[1742353608967,0.05180092,124.75,124.73,21.3364637]
[1742353609172,0.05180092,124.75,124.74,13.3185637]
[1742353609373,0.05180092,124.75,124.73,13.3185637]
[1742353609572,0.05180092,124.75,124.72,28.31361281]
[1742353609573,0.05180092,124.75,124.72,41.63217651]
[1742353610180,8.06880092,124.75,124.72,41.63217651]
[1742353610475,8.06880092,124.75,124.73,13.3185637]
[1742353611674,8.0173,124.74,124.73,13.3185637]
[1742353612377,8.06870092,124.75,124.73,13.3185637]
[1742353613673,0.05180092,124.75,124.73,21.3364637]
[1742353613873,0.05180092,124.75,124.74,41.5785637]
[1742353614073,13.4,124.76,124.74,306.1185637]
[1742353614273,13.4,124.76,124.75,21.3351637]
[1742353614469,13.4,124.76,124.75,13.3185637]
[1742353615873,13.4,124.76,124.75,21.3351637]
[1742353616370,13.4,124.76,124.75,13.3185637]
[1742353618874,13.4,124.76,124.75,21.3351637]
[1742353621883,0.05456229,124.77,124.75,21.3351637]
[1742353622083,0.05456229,124.77,124.76,13.3185637]
[1742353629983,0.05456229,124.77,124.76,21.3345637]
[1742353630288,11.44,124.79,124.76,41.5585637]
[1742353630485,11.44,124.79,124.78,13.3185637]
[1742353630677,19.4544,124.79,124.77,13.3185637]
[1742353630880,8.0144,124.79,124.77,13.3185637]
[1742353631383,8.07161308,124.79,124.77,13.3185637]
[1742353631688,8.0147,124.78,124.77,13.3185637]
[1742353631886,0.05721308,124.79,124.77,13.3185637]
[1742353632184,8.07151308,124.79,124.77,13.3185637]
[1742353633688,0.05721308,124.79,124.78,13.3185637]
[1742353635991,0.05721308,124.79,124.78,21.3332637]
[1742353636484,0.05721308,124.79,124.78,13.3185637]
[1742353638291,0.05721308,124.79,124.78,41.5585637]
[1742353640797,0.05721308,124.79,124.78,49.5732637]
[1742353641697,0.05721308,124.79,124.78,41.5585637]
[1742353648194,0.05721308,124.79,124.78,49.5732637]
[1742353649002,16.44,124.8,124.79,8.0141]
[1742353649195,16.44,124.8,124.79,21.3326637]
[1742353651500,8.0111,124.84,124.79,13.3185637]
[1742353651802,8.0111,124.84,124.82,13.3185637]
[1742353652000,71.92494946,124.87,124.83,13.3185637]
[1742353652199,67.68114946,124.87,124.85,12.9271274]
[1742353652396,67.68114946,124.87,124.85,20.9369274]
[1742353652604,11.1506831,124.88,124.85,20.99281664]
[1742353653003,11.1506831,124.88,124.85,12.98301664]
[1742353653204,11.1506831,124.88,124.86,13.3185637]
[1742353654708,19.1590831,124.88,124.86,13.3185637]
[1742353655709,11.1506831,124.88,124.86,13.3185637]
[1742353656008,11.1506831,124.88,124.87,13.3185637]
[1742353656907,8.0079,124.89,124.87,13.3185637]
[1742353657708,12.1801,124.9,124.88,13.3185637]
[1742353658006,4.1728,124.9,124.88,13.3185637]
[1742353658211,4.1728,124.9,124.88,13.37271687]
[1742353658409,8.0076,124.89,124.88,13.37271687]
[1742353660512,8.0076,124.89,124.88,0.05415317]
[1742353664112,8.0076,124.89,124.88,13.37271687]
[1742353664915,8.0073,124.9,124.88,13.37271687]
[1742353665212,8.0073,124.9,124.88,41.59271687]
[1742353665713,8.0073,124.9,124.89,13.3185637]
[1742353667815,10.0221,124.91,124.89,13.3185637]
[1742353668017,4.1226,124.95,124.9,41.5385637]
[1742353668018,17.4411637,124.95,124.9,41.5385637]
[1742353668210,8.0057,124.92,124.9,28.22]
[1742353668404,13.3185637,124.93,124.9,28.27833442]
[1742353668605,13.3185637,124.93,124.9,0.05833442]
[1742353670209,39.63,124.92,124.9,0.05833442]
[1742353670718,8.0064,124.91,124.9,0.05833442]
[1742353675826,21.3249637,124.91,124.9,3.442e-05]
[1742353676120,8.0101,124.86,124.85,13.3185637]
[1742353689129,0.05229538,124.87,124.85,13.3185637]
[1742353689334,0.05229538,124.87,124.86,13.3185637]
[1742353691033,8.0072,124.9,124.86,13.3185637]
[1742353691235,8.0072,124.9,124.89,13.3185637]
[1742353692734,8.0064,124.91,124.89,13.3185637]
[1742353692930,8.0064,124.91,124.9,13.3185637]
[1742353693137,39.63,124.92,124.9,13.3185637]
[1742353693436,47.6361,124.92,124.91,13.3185637]
[1742353695339,19.4161,124.92,124.91,13.3185637]
[1742353696135,11.41,124.92,124.91,13.3185637]
[1742353697434,11.41,124.92,124.91,21.3249637]
[1742353697639,8.0047,124.94,124.91,21.3249637]
[1742353697839,8.0047,124.94,124.93,13.3185637]
[1742353698534,2.0392,124.97,124.93,13.3185637]
[1742353698734,44.60273242,124.98,124.95,13.3185637]
[1742353698934,44.60273242,124.98,124.96,13.3185637]
[1742353699141,44.60273242,124.98,124.96,6.65928185]
[1742353699441,8.003,124.97,124.96,6.65928185]
[1742353700636,72.82273242,124.98,124.95,13.3185637]
[1742353701038,28.22,124.98,124.95,13.3185637]
[1742353701439,28.22,124.98,124.94,13.37719171]
[1742353702037,28.22,124.97,124.94,13.37719171]
[1742353702237,8.0038,124.95,124.94,0.05862801]
[1742353702438,36.2238,124.95,124.94,0.05862801]
[1742353705943,49.5423637,124.95,124.94,2.801e-05]
[1742353707444,36.2238,124.95,124.94,2.801e-05]
[1742353711447,36.2238,124.95,124.94,13.31859171]
[1742353711849,8.06494592,124.96,124.94,13.31859171]
[1742353712040,8.06494592,124.96,124.95,13.3185637]
[1742353715950,8.06494592,124.96,124.94,13.31859171]
[1742353718954,0.06144592,124.96,124.95,13.3185637]
[1742353719857,0.06144592,124.96,124.95,21.3223637]
[1742353720552,0.06144592,124.96,124.95,13.3185637]
[1742353724455,8.0038,124.95,124.94,2.801e-05]
[1742353724662,36.2038,124.95,124.94,2.801e-05]
[1742353736000,49.5223637,124.95,124.94,2.801e-05]
[1742353736599,51.5949637,124.95,124.94,2.801e-05]
[1742353736794,8.0076,124.89,124.88,13.3185637]
[1742353738999,0.05722847,124.9,124.88,13.3185637]
[1742353739302,0.05722847,124.9,124.89,13.3185637]
[1742353740802,2.1895,124.96,124.89,41.5185637]
[1742353741107,44.60273242,124.97,124.93,13.3185637]
[1742353741300,52.60553242,124.97,124.95,13.3185637]
[1742353741504,44.60273242,124.97,124.95,13.3185637]
[1742353742006,44.60273242,124.97,124.95,13.37151269]
[1742353742301,80.80563242,124.97,124.95,0.05294899]
[1742353743393,8.0032,124.96,124.95,0.05294899]
[1742353745805,38.1027,124.97,124.95,0.05294899]
[1742353746200,30.1,124.97,124.95,0.05294899]
[1742353747203,8.0032,124.96,124.95,0.05294899]
[1742353753778,13.3185637,124.96,124.91,13.3185637]
[1742353753979,41.5185637,124.95,124.91,13.3185637]
[1742353754978,0.05828879,124.94,124.92,0.06155075]
[1742353755277,28.2,124.93,124.92,0.06155075]
[1742353755474,36.2051,124.93,124.92,0.06155075]
[1742353756677,36.2051,124.93,124.92,13.38011445]
[1742353760477,36.2051,124.93,124.92,6.7208326]
[1742353760683,36.2051,124.93,124.92,0.06155075]
[1742353767988,28.2,124.93,124.92,0.06155075]
[1742353769192,36.2051,124.93,124.92,0.06155075]
[1742353770890,28.2,124.93,124.92,0.06155075]
[1742353773992,36.2051,124.93,124.92,0.06155075]
[1742353774589,49.5236637,124.93,124.92,0.06155075]
[1742353774795,8.0083,124.88,124.87,13.3185637]
[1742353774991,28.2,124.89,124.86,15.3508637]
[1742353775890,28.26062254,124.89,124.86,15.40990198]
[1742353776993,28.26062254,124.89,124.86,13.37760198]
[1742353784401,28.26062254,124.89,124.86,0.05903828]
[1742353789206,41.57918624,124.89,124.86,0.05903828]
[1742353790503,8.0089,124.87,124.86,0.05903828]
[1742353790802,36.2289,124.87,124.86,0.05903828]
[1742353795907,8.0108,124.85,124.83,13.3185637]
[1742353797109,8.0108,124.84,124.83,13.37186278]
[1742353797299,0.05438792,124.85,124.83,13.37186278]
[1742353797501,28.27438792,124.85,124.83,13.37186278]
[1742353797701,36.28508792,124.85,124.83,13.37186278]
[1742353801799,8.0108,124.84,124.83,13.37186278]
[1742353803910,8.0108,124.84,124.83,0.05329908]
[1742353809213,21.3293637,124.84,124.83,0.05329908]
[1742353809404,8.0125,124.82,124.79,13.3185637]
[1742353809609,36.2325,124.82,124.79,13.3185637]
[1742353810507,36.29103228,124.82,124.79,13.37822942]
[1742353810707,36.29103228,124.82,124.8,13.3185637]
[1742353810913,8.0128,124.81,124.8,13.3185637]
[1742353812115,28.27853228,124.82,124.79,0.05966572]
[1742353812717,41.59709598,124.82,124.79,0.05966572]
[1742353812921,13.3185637,124.81,124.79,0.05966572]
[1742353813218,28.22,124.8,124.79,0.05966572]
[1742353814018,36.2334,124.8,124.79,0.05966572]
[1742353814314,28.22,124.8,124.79,0.05966572]
[1742353815320,1.89,124.81,124.79,13.37822942]
[1742353815515,1.89,124.81,124.8,13.3185637]
[1742353815915,1.89,124.81,124.8,21.3319637]
[1742353816219,0.05853228,124.82,124.8,41.5385637]
[1742353816419,6.57,124.85,124.81,13.3185637]
[1742353816621,6.57,124.85,124.84,13.3185637]
[1742353817318,6.57,124.85,124.83,13.3185637]
[1742353817518,6.57,124.85,124.83,13.37858623]
[1742353818917,14.5802,124.85,124.83,13.37858623]
[1742353820015,6.57,124.85,124.83,13.37858623]
[1742353823524,6.57,124.85,124.83,0.06002253]
[1742353824024,14.5803,124.85,124.83,0.06002253]
[1742353824225,6.57,124.85,124.83,0.06002253]
[1742353824427,36.2308,124.84,124.83,0.06002253]
[1742353824625,28.22,124.84,124.83,0.06002253]
[1742353825922,36.2308,124.84,124.83,0.06002253]
[1742353837646,8.0123,124.82,124.8,13.3185637]
[1742353838942,8.06737332,124.82,124.8,13.3789179]
[1742353841449,0.05507332,124.82,124.8,13.3789179]
[1742353841643,0.05507332,124.82,124.81,13.3185637]
[1742353841844,28.22,124.86,124.81,13.3185637]
[1742353842147,36.2299,124.86,124.84,13.3185637]
[1742353843042,8.0102,124.85,124.84,0.06089675]
[1742353845443,21.3287637,124.85,124.84,0.06089675]
[1742353851647,8.0102,124.85,124.84,0.06089675]
[1742353855550,8.0127,124.82,124.8,13.3185637]
[1742353855753,28.22,124.84,124.8,13.3185637]
[1742353856851,0.05354388,124.83,124.81,0.05920623]
[1742353857252,8.0121,124.82,124.81,0.05920623]
[1742353863653,8.06534388,124.83,124.81,13.37776993]
[1742353863851,0.05354388,124.83,124.82,13.3185637]
[1742353864051,0.05354388,124.83,124.82,21.3306637]
[1742353864654,28.22,124.88,124.82,13.3185637]
[1742353864856,28.22,124.88,124.86,13.3185637]
[1742353865652,8.0094,124.87,124.85,13.3185637]
[1742353865857,8.0094,124.87,124.86,0.05364124]
[1742353875259,36.28824559,124.88,124.86,0.05364124]
[1742353876758,44.60273242,124.93,124.88,8.0077]
[1742353876956,44.60273242,124.93,124.9,13.3185637]
[1742353877453,8.0062,124.92,124.9,13.3185637]
[1742353877656,44.60273242,124.93,124.91,13.3185637]
[1742353877856,44.65689055,124.93,124.91,13.37340778]
[1742353878052,44.65689055,124.93,124.92,13.3185637]
[1742353878462,52.66199055,124.93,124.92,13.3185637]
[1742353878855,44.65689055,124.93,124.91,13.37340778]
[1742353879966,8.0057,124.92,124.91,13.37340778]
[1742353880562,0.05415813,124.93,124.91,13.37340778]
[1742353880865,0.05415813,124.93,124.92,41.5185637]
[1742353881466,11.1506831,124.96,124.92,41.5185637]
[1742353881665,11.1506831,124.96,124.93,13.3185637]
[1742353882665,11.20844949,124.96,124.93,13.3185637]
[1742353882967,11.20844949,124.96,124.92,41.5185637]
[1742353883167,0.05776639,124.96,124.92,41.5185637]
[1742353883360,8.0051,124.93,124.92,41.5185637]
[1742353883769,8.0051,124.93,124.92,28.2]
[1742353884063,8.0057,124.92,124.91,13.37340778]
[1742353886669,8.05737224,124.93,124.91,13.37340778]
[1742353886864,8.05737224,124.93,124.92,13.3185637]
[1742353890963,8.0057,124.92,124.91,0.05484408]
[1742353894069,8.0057,124.92,124.91,13.37340778]
[1742353900978,0.05197224,124.93,124.91,41.57340778]
[1742353901178,0.05197224,124.93,124.92,13.3185637]
[1742353901979,8.0036,124.96,124.92,13.3185637]
[1742353902181,8.0036,124.96,124.94,13.3185637]
[1742353903081,8.02566952,124.96,124.94,13.37666173]
[1742353905583,8.0038,124.95,124.94,13.37666173]
[1742353906179,8.02536952,124.96,124.94,13.37666173]
[1742353906577,0.02206952,124.96,124.94,21.38106173]
[1742353907583,0.02206952,124.96,124.95,13.3185637]
[1742353909386,8.02526952,124.96,124.95,13.3185637]
[1742353909883,8.02526952,124.96,124.94,13.37666173]
[1742353910283,0.02206952,124.96,124.94,21.38096173]
[1742353910682,0.02206952,124.96,124.94,13.37666173]
[1742353910988,0.02206952,124.96,124.95,13.3185637]
[1742353917498,0.02206952,124.96,124.95,21.3223637]
[1742353919201,0.02206952,124.96,124.95,13.3185637]
[1742353919799,0.02206952,124.96,124.95,21.3223637]
[1742353922101,0.02206952,124.96,124.95,49.5023637]
[1742353922701,2.1093,125.02,124.95,41.4985637]
[1742353923003,30.2893,125.02,124.98,13.3185637]
[1742353923205,8.001,125.0,124.98,13.3185637]
[1742353923807,8.001,125.0,124.98,13.37933535]
[1742353925103,8.0012,124.99,124.98,0.06077165]
[1742353930807,13.3185637,124.99,124.93,13.3185637]
[1742353931001,43.5536637,124.98,124.93,13.3185637]
[1742353931599,8.0044,124.95,124.93,13.3185637]
[1742353931805,8.0044,124.95,124.94,13.3185637]
[1742353932010,8.06045366,124.95,124.94,13.3185637]
[1742353933710,0.05605366,124.95,124.94,13.3185637]
[1742353934010,0.05605366,124.95,124.94,41.4985637]